bitfinex/quotes_BTCUSD_20250916
["timestamp","ask_amount","ask_price","bid_price","bid_amount"]
[1758010501980,0.00248,116120.0,116110.0,1.10434759]
[1758010502217,0.0004,116120.0,116110.0,1.10434759]
[1758010503084,0.03016,116120.0,116110.0,0.62094055]
[1758010503270,0.20239561,116120.0,116110.0,0.62094055]
[1758010503569,0.20239561,116120.0,116110.0,0.49696055]
[1758010504314,0.02695,116120.0,116110.0,0.49905055]
[1758010504529,0.02695,116120.0,116110.0,0.83361759]
[1758010504766,0.00248,116120.0,116110.0,0.83674759]
[1758010506338,0.0004,116120.0,116110.0,0.83674759]
[1758010513350,0.0004,116120.0,116110.0,1.14778463]
[1758010513751,0.0004,116120.0,116110.0,0.83674759]
[1758010515157,0.0004,116120.0,116110.0,1.10444759]
[1758010515653,0.0004,116120.0,116110.0,1.13032939]
[1758010517872,0.0004,116120.0,116110.0,0.98660939]
[1758010518081,0.0004,116120.0,116110.0,1.13032939]
[1758010528530,0.0004,116120.0,116110.0,1.44136643]
[1758010528947,0.0004,116120.0,116110.0,1.13028939]
[1758010529356,0.0004,116120.0,116110.0,1.44132643]
[1758010529536,0.0004,116120.0,116110.0,1.13028939]
[1758010530790,0.0004,116120.0,116110.0,1.44132643]
[1758010530968,0.0004,116120.0,116110.0,1.29764643]
[1758010531316,0.0004,116120.0,116110.0,1.13044939]
[1758010531735,0.0004,116120.0,116110.0,1.13040939]
[1758010535326,0.0004,116120.0,116110.0,0.81937235]
[1758010535545,0.0004,116120.0,116110.0,1.13040939]
[1758010537831,0.0004,116120.0,116110.0,1.16923961]
[1758010539112,0.0004,116120.0,116110.0,1.51910687]
[1758010540263,0.0004,116120.0,116110.0,0.81937235]
[1758010540475,0.0004,116120.0,116110.0,1.51910687]
[1758010541825,0.0004,116120.0,116110.0,0.67557235]
[1758010542041,0.0004,116120.0,116110.0,1.16927961]
[1758010543036,0.0004,116120.0,116110.0,1.51914687]
[1758010548648,0.0004,116120.0,116110.0,1.51906687]
[1758010549321,0.0004,116120.0,116110.0,1.91906687]
[1758010549521,0.0004,116120.0,116110.0,1.77530687]
[1758010549726,0.0004,116120.0,116110.0,1.91906687]
[1758010550527,0.0004,116120.0,116110.0,1.77530687]
[1758010550750,0.0004,116120.0,116110.0,1.91906687]
[1758010551930,0.0004,116120.0,116110.0,1.77530687]
[1758010552117,0.0004,116120.0,116110.0,1.37530687]
[1758010552329,0.0004,116120.0,116110.0,1.16915961]
[1758010553252,0.0004,116120.0,116110.0,1.51902687]
[1758010561211,0.0004,116120.0,116110.0,1.51880965]
[1758010562314,0.0004,116120.0,116110.0,0.81907513]
[1758010562515,0.0004,116120.0,116110.0,1.51880965]
[1758010564056,0.0004,116120.0,116110.0,1.37508965]
[1758010564456,0.0004,116120.0,116110.0,1.51904965]
[1758010566646,0.0004,116120.0,116110.0,1.91904965]
[1758010567487,0.0004,116120.0,116110.0,1.77508965]
[1758010567705,0.0004,116120.0,116110.0,1.37508965]
[1758010567888,0.0004,116120.0,116110.0,1.16918239]
[1758010568528,0.0004,116120.0,116110.0,1.02522239]
[1758010568794,0.0004,116120.0,116110.0,1.16918239]
[1758010569759,0.0004,116120.0,116110.0,0.81931513]
[1758010569974,0.0004,116120.0,116110.0,1.16918239]
[1758010570169,0.0004,116120.0,116110.0,1.02522239]
[1758010570417,0.0004,116120.0,116110.0,0.81927513]
[1758010570622,0.0004,116120.0,116110.0,1.16914239]
[1758010579554,0.0004,116120.0,116110.0,1.56900965]
[1758010579980,0.0004,116120.0,116110.0,1.96900965]
[1758010581156,4.859,116130.0,116120.0,1.23709671]
[1758010581395,4.85912213,116130.0,116120.0,1.47066023]
[1758010581635,4.85912213,116130.0,116120.0,1.49803023]
[1758010581901,4.85912213,116130.0,116120.0,1.92390623]
[1758010582151,4.85912213,116130.0,116120.0,1.77990623]
[1758010582383,4.85912213,116130.0,116120.0,1.43003897]
[1758010582621,4.85912213,116130.0,116120.0,1.17613897]
[1758010583083,4.85912213,116130.0,116120.0,1.17813897]
[1758010583314,4.85912213,116130.0,116120.0,0.82823171]
[1758010583534,4.88717213,116130.0,116120.0,1.15072897]
[1758010583758,4.85912213,116130.0,116120.0,1.17809897]
[1758010584016,4.85912213,116130.0,116120.0,1.24068079]
[1758010584726,4.85912213,116130.0,116120.0,1.23968079]
[1758010584955,4.85912213,116130.0,116120.0,1.24068079]
[1758010586437,4.85912213,116130.0,116120.0,1.50838079]
[1758010587879,4.85912213,116130.0,116120.0,1.01455353]
[1758010588154,4.88717213,116130.0,116120.0,1.47901079]
[1758010588375,4.88416213,116130.0,116120.0,1.50536079]
[1758010588807,4.88416213,116130.0,116120.0,1.50842079]
[1758010589027,4.86119213,116130.0,116120.0,1.50842079]
[1758010589232,4.86119213,116130.0,116120.0,1.50536079]
[1758010589444,4.88903213,116130.0,116120.0,1.50536079]
[1758010589844,4.88903213,116130.0,116120.0,1.15549353]
[1758010590075,4.88903213,116130.0,116120.0,1.50536079]
[1758010590215,4.85912213,116130.0,116120.0,1.50536079]
[1758010590390,4.85912213,116130.0,116120.0,1.50829079]
[1758010591633,4.85912213,116130.0,116120.0,1.15842353]
[1758010591838,4.85912213,116130.0,116120.0,1.50829079]
[1758010592656,4.86118213,116130.0,116120.0,1.50536079]
[1758010592858,4.88601213,116130.0,116120.0,1.50536079]
[1758010593059,4.88902213,116130.0,116120.0,1.50536079]
[1758010593472,4.88601213,116130.0,116120.0,1.50536079]
[1758010596333,4.88902213,116130.0,116120.0,1.50536079]
[1758010596543,4.88601213,116130.0,116120.0,1.50536079]
[1758010597288,4.85912213,116130.0,116120.0,1.50829079]
[1758010597540,4.85912213,116130.0,116120.0,1.85815805]
[1758010599816,4.85912213,116130.0,116120.0,1.78023365]
[1758010600639,4.85912213,116130.0,116120.0,1.51253365]
[1758010602714,4.85912213,116130.0,116120.0,1.91253365]
[1758010608710,4.85912213,116130.0,116120.0,1.29072353]
[1758010608922,4.85912213,116130.0,116120.0,1.91253365]
[1758010609126,4.85912213,116130.0,116120.0,1.76853365]
[1758010609337,4.85912213,116130.0,116120.0,1.91237365]
[1758010609545,4.85912213,116130.0,116120.0,1.60146859]
[1758010609774,4.85912213,116130.0,116120.0,1.29056353]
[1758010609976,4.85912213,116130.0,116120.0,1.60146859]
[1758010612372,4.85912213,116130.0,116120.0,1.91237365]
[1758010612992,4.85912213,116130.0,116120.0,1.92087365]
[1758010614609,4.85912213,116130.0,116120.0,1.77703365]
[1758010614823,4.85912213,116130.0,116120.0,1.92083365]
[1758010615149,4.85912213,116130.0,116120.0,1.77703365]
[1758010615329,4.85912213,116130.0,116120.0,1.92083365]
[1758010615527,4.85912213,116130.0,116120.0,1.29902353]
[1758010615744,4.85912213,116130.0,116120.0,1.92083365]
[1758010621878,4.85912213,116130.0,116120.0,1.91233365]
[1758010622904,4.85912213,116130.0,116120.0,1.29052353]
[1758010623116,4.85912213,116130.0,116120.0,1.91233365]
[1758010625158,4.85912213,116130.0,116120.0,1.60142859]
[1758010625308,4.85912213,116130.0,116120.0,1.91233365]
[1758010626165,4.85912213,116130.0,116120.0,1.91229365]
[1758010626375,4.85912213,116130.0,116120.0,1.29060353]
[1758010626577,4.85912213,116130.0,116120.0,1.91241365]
[1758010626779,4.85912213,116130.0,116120.0,1.92091365]
[1758010628893,4.85912213,116130.0,116120.0,1.29910353]
[1758010629098,4.85912213,116130.0,116120.0,1.92091365]
[1758010630050,4.85912213,116130.0,116120.0,1.97091365]
[1758010633145,4.85912213,116130.0,116120.0,1.34910353]
[1758010633433,4.83325957,116130.0,116120.0,1.97091365]
[1758010633638,4.80739701,116130.0,116120.0,1.97091365]
[1758010633874,4.78153445,116130.0,116120.0,1.97091365]
[1758010634086,4.75567359,116130.0,116120.0,1.96241365]
[1758010634293,4.72981273,116130.0,116120.0,1.96241365]
[1758010634495,4.70395187,116130.0,116120.0,1.96241365]
[1758010634722,4.67809101,116130.0,116120.0,1.96241365]
[1758010634933,4.62636929,116130.0,116120.0,1.96241365]
[1758010635135,4.60050843,116130.0,116120.0,1.96241365]
[1758010636933,4.60050843,116130.0,116120.0,1.96245365]
[1758010637151,4.60050843,116130.0,116120.0,1.65158859]
[1758010638987,4.60050843,116130.0,116120.0,1.66008859]
[1758010639822,4.60050843,116130.0,116120.0,1.20522353]
[1758010640026,4.60050843,116130.0,116120.0,1.66020859]
[1758010640233,4.60050843,116130.0,116120.0,1.51612859]
[1758010640439,4.60050843,116130.0,116120.0,1.66020859]
[1758010640850,4.60050843,116130.0,116120.0,1.34930353]
[1758010641013,4.60050843,116130.0,116120.0,1.66020859]
[1758010641479,4.60262843,116130.0,116120.0,1.46612859]
[1758010641684,4.62893843,116130.0,116120.0,1.01172201]
[1758010641868,4.62893843,116130.0,116120.0,1.15580201]
[1758010642426,4.62893843,116130.0,116120.0,1.18092859]
[1758010645065,4.62893843,116130.0,116120.0,1.03684859]
[1758010645288,4.62893843,116130.0,116120.0,0.36006753]
[1758010645468,4.62893843,116130.0,116120.0,0.50414753]
[1758010647668,5.11206427,116130.0,116120.0,0.16270534]
[1758010647874,5.11206427,116130.0,116120.0,0.29824534]
[1758010648292,5.11206427,116130.0,116120.0,0.32337192]
[1758010648534,5.11206427,116130.0,116120.0,0.32237192]
[1758010648812,5.11206427,116130.0,116120.0,0.32137192]
[1758010649065,5.11506427,116130.0,116120.0,0.20872182]
[1758010649284,5.11506427,116130.0,116120.0,0.2338484]
[1758010649708,5.14095061,116130.0,116120.0,0.2338484]
[1758010649936,5.14095061,116130.0,116120.0,0.16926658]
[1758010649937,5.28503061,116130.0,116120.0,0.16926658]
[1758010650163,5.14095061,116130.0,116120.0,0.16926658]
[1758010651052,5.28507061,116130.0,116120.0,0.16926658]
[1758010651626,5.14095061,116130.0,116120.0,0.16926658]
[1758010651869,5.28507061,116130.0,116120.0,0.16926658]
[1758010652069,4.97416555,116130.0,116120.0,0.16926658]
[1758010652275,5.28511061,116130.0,116120.0,0.16926658]
[1758010653572,5.14095061,116130.0,116120.0,0.16926658]
[1758010653779,5.28515061,116130.0,116120.0,0.16926658]
[1758010656452,5.14095061,116130.0,116120.0,0.16926658]
[1758010656671,5.28519061,116130.0,116120.0,0.16926658]
[1758010658394,4.97428555,116130.0,116120.0,0.16926658]
[1758010658605,5.28519061,116130.0,116120.0,0.16926658]
[1758010659124,5.14095061,116130.0,116120.0,0.16926658]
[1758010659346,5.28519061,116130.0,116120.0,0.16926658]
[1758010660396,5.30127155,116130.0,116120.0,0.16926658]
[1758010660817,6.03861077,116130.0,116120.0,0.0001]
[1758010661018,6.13216442,116130.0,116120.0,0.0001]
[1758010661439,5.98792442,116130.0,116120.0,0.0001]
[1758010661663,6.13216442,116130.0,116120.0,0.0001]
[1758010661868,6.21084278,116130.0,116120.0,0.0001]
[1758010662073,6.20984278,116130.0,116120.0,0.0001]
[1758010662793,6.21284278,116130.0,116120.0,0.0001]
[1758010663484,6.56308702,116130.0,116120.0,0.0001]
[1758010663892,6.56336702,116130.0,116120.0,0.0001]
[1758010664914,6.21312278,116130.0,116120.0,0.0001]
[1758010665324,6.06860278,116130.0,116120.0,0.0001]
[1758010665540,6.21316278,116130.0,116120.0,0.0001]
[1758010665722,6.06860278,116130.0,116120.0,0.0001]
[1758010666084,6.21316278,116130.0,116120.0,0.0001]
[1758010666599,6.21312278,116130.0,116120.0,0.0001]
[1758010668342,6.21312077,116130.0,116120.0,0.0001]
[1758010668769,6.21311714,116130.0,116120.0,0.0001]
[1758010671151,0.51223561,116120.0,116110.0,0.0001]
[1758010671389,1.02906528,116120.0,116110.0,0.0001]
[1758010671595,1.03105528,116120.0,116110.0,0.0001]
[1758010671820,1.08433765,116120.0,116110.0,0.0001]
[1758010672808,0.17225045,116110.0,116100.0,0.02522658]
[1758010673023,0.69205012,116110.0,116100.0,0.02522658]
[1758010673213,0.71842012,116110.0,116100.0,0.02522658]
[1758010673455,0.74431249,116110.0,116100.0,0.02522658]
[1758010674648,0.74434181,116110.0,116100.0,0.02522658]
[1758010675626,0.75308483,116110.0,116100.0,0.02522658]
[1758010676431,0.75308483,116110.0,116100.0,0.0001]
[1758010676637,1.61728675,116110.0,116100.0,0.0001]
[1758010677487,1.61928675,116110.0,116100.0,0.0001]
[1758010677920,1.53285259,116110.0,116100.0,0.0001]
[1758010678572,1.38841259,116110.0,116100.0,0.0001]
[1758010678982,1.03616835,116110.0,116100.0,0.0001]
[1758010679186,1.03816835,116110.0,116100.0,0.0001]
[1758010679389,1.18548835,116110.0,116100.0,0.0001]
[1758010679599,1.18348835,116110.0,116100.0,0.0001]
[1758010679833,1.04116835,116110.0,116100.0,0.0001]
[1758010680007,1.18848835,116110.0,116100.0,0.0001]
[1758010680209,1.04416835,116110.0,116100.0,0.0001]
[1758010680410,1.18244633,116110.0,116100.0,0.0001]
[1758010680623,1.02806791,116110.0,116100.0,0.0001]
[1758010681251,1.18851647,116110.0,116100.0,0.0001]
[1758010683598,0.51226528,116100.0,116090.0,0.0001]
[1758010683760,0.17228012,116090.0,116080.0,0.05201658]
[1758010683956,0.19445689,116090.0,116080.0,0.22431154]
[1758010684183,0.19445689,116090.0,116080.0,0.22638154]
[1758010684590,0.19445689,116090.0,116080.0,0.57662578]
[1758010685113,0.22035288,116090.0,116080.0,0.22638154]
[1758010685524,0.22135288,116090.0,116080.0,0.22638154]
[1758010686402,0.22235288,116090.0,116080.0,0.22638154]
[1758010687392,0.22235467,116090.0,116080.0,0.22638154]
[1758010693020,0.22235467,116090.0,116080.0,0.6641493]
[1758010693021,0.02417856,116090.0,116080.0,0.6641493]
[1758010694892,0.02317856,116090.0,116080.0,0.6641493]
[1758010695299,0.02417856,116090.0,116080.0,0.6641493]
[1758010695732,0.02217856,116090.0,116080.0,0.6641493]
[1758010695956,0.02217856,116090.0,116080.0,0.8083893]
[1758010696159,0.22375868,116090.0,116080.0,0.19512658]
[1758010696363,0.57400292,116090.0,116080.0,0.16946658]
[1758010696811,0.22375868,116090.0,116080.0,0.02729658]
[1758010697053,0.19648868,116090.0,116080.0,0.05039658]
[1758010697266,0.19648868,116090.0,116080.0,0.05363658]
[1758010698381,0.19648868,116090.0,116080.0,0.22593154]
[1758010698635,0.19648868,116090.0,116080.0,0.05363658]
[1758010699278,0.22053868,116090.0,116080.0,0.05039658]
[1758010699500,0.71820292,116090.0,116080.0,0.02522658]
[1758010699710,0.71820292,116090.0,116080.0,0.0001]
[1758010699927,0.74410025,116090.0,116080.0,0.0001]
[1758010700972,0.74510025,116090.0,116080.0,0.0001]
[1758010701410,0.74610025,116090.0,116080.0,0.0001]
[1758010702695,0.74510025,116090.0,116080.0,0.0001]
[1758010702900,1.08510025,116090.0,116080.0,0.0001]
[1758010703104,1.17362377,116090.0,116080.0,0.0001]
[1758010703916,1.17362988,116090.0,116080.0,0.0001]
[1758010706178,0.17229496,116080.0,116070.0,0.0001]
[1758010706419,0.54472387,116080.0,116070.0,0.00014724]
[1758010706639,0.57402387,116080.0,116070.0,0.00014724]
[1758010706857,0.24968,116080.0,116070.0,0.00014724]
[1758010707086,0.59992424,116080.0,116070.0,0.00014724]
[1758010707317,0.59992424,116080.0,116070.0,0.00221724]
[1758010707907,0.59670424,116080.0,116070.0,0.00221724]
[1758010708108,0.36661,116080.0,116070.0,0.02531724]
[1758010708773,0.22038,116080.0,116070.0,0.02531724]
[1758010709019,0.3647,116080.0,116070.0,0.37880148]
[1758010709387,0.22038,116080.0,116070.0,0.37880148]
[1758010709598,0.21432389,116080.0,116070.0,0.37880148]
[1758010710097,0.21432389,116080.0,116070.0,0.02855724]
[1758010710295,0.21432389,116080.0,116070.0,0.37880148]
[1758010711639,0.21432389,116080.0,116070.0,0.02855724]
[1758010711870,0.21432389,116080.0,116070.0,0.37880148]
[1758010712109,0.21432389,116080.0,116070.0,0.02855724]
[1758010713417,0.35860389,116080.0,116070.0,0.02855724]
[1758010713645,0.35860389,116080.0,116070.0,0.37880148]
[1758010714129,0.21432389,116080.0,116070.0,0.57623787]
[1758010714361,0.65662012,116090.0,116080.0,0.02512658]
[1758010714588,0.70470416,116090.0,116080.0,0.37746082]
[1758010714819,0.70470416,116090.0,116080.0,0.40312082]
[1758010714950,0.56046416,116090.0,116080.0,0.40312082]
[1758010715190,0.55441303,116090.0,116080.0,0.05287658]
[1758010715611,0.55441303,116090.0,116080.0,0.22517154]
[1758010715612,0.21541303,116090.0,116080.0,0.22517154]
[1758010715818,0.17338012,116090.0,116080.0,0.57541578]
[1758010716240,0.17438012,116090.0,116080.0,0.57541578]
[1758010716452,0.17428012,116090.0,116080.0,0.57541578]
[1758010718612,0.17328012,116090.0,116080.0,0.57541578]
[1758010718824,0.17328012,116090.0,116080.0,0.57551578]
[1758010719028,0.17228012,116090.0,116080.0,0.57551578]
[1758010720875,0.17435012,116090.0,116080.0,0.19408658]
[1758010721556,0.57692004,116090.0,116080.0,0.17143658]
[1758010721798,0.2266758,116090.0,116080.0,0.17143658]
[1758010722407,0.2266758,116090.0,116080.0,0.19408658]
[1758010723276,0.2002458,116090.0,116080.0,0.19408658]
[1758010723506,0.1981758,116090.0,116080.0,0.19709658]
[1758010723759,0.2266758,116090.0,116080.0,0.0001]
[1758010723978,0.8780163,116090.0,116080.0,0.0001]
[1758010724226,0.98772865,116090.0,116080.0,0.0001]
[1758010725115,0.98972865,116090.0,116080.0,0.0001]
[1758010725541,0.99172865,116090.0,116080.0,0.0001]
[1758010726776,0.17229496,116080.0,116070.0,0.00014724]
[1758010726983,0.64389254,116080.0,116070.0,0.00014724]
[1758010727215,0.64596254,116080.0,116070.0,0.00014724]
[1758010727420,0.69829274,116080.0,116070.0,0.00014724]
[1758010728061,0.69929274,116080.0,116070.0,0.00014724]
[1758010728755,0.70029274,116080.0,116070.0,0.00014724]
[1758010728970,1.46151239,116080.0,116070.0,0.00014724]
[1758010729206,1.47051906,116080.0,116070.0,0.00014724]
[1758010729415,1.53675906,116080.0,116070.0,0.00014724]
[1758010729625,1.565064,116080.0,116070.0,0.00014724]
[1758010730507,1.53675906,116080.0,116070.0,0.00014724]
[1758010730714,1.53676459,116080.0,116070.0,0.00014724]
[1758010730920,1.39264459,116080.0,116070.0,0.00014724]
[1758010731135,1.51141741,116080.0,116070.0,4.724e-05]
[1758010731979,1.20007691,116080.0,116070.0,4.724e-05]
[1758010732489,1.20017691,116080.0,116070.0,4.724e-05]
[1758010733455,1.20016749,116080.0,116070.0,4.724e-05]
[1758010734513,1.05608749,116080.0,116070.0,4.724e-05]
[1758010734663,1.20016749,116080.0,116070.0,4.724e-05]
[1758010736633,1.51150799,116080.0,116070.0,4.724e-05]
[1758010737234,1.51162799,116080.0,116070.0,4.724e-05]
[1758010737607,1.20028749,116080.0,116070.0,4.724e-05]
[1758010737805,1.51162799,116080.0,116070.0,4.724e-05]
[1758010739537,1.51161617,116080.0,116070.0,4.724e-05]
[1758010740324,1.51160656,116080.0,116070.0,4.724e-05]
[1758010740735,1.20018606,116080.0,116070.0,4.724e-05]
[1758010740947,1.05606606,116080.0,116070.0,4.724e-05]
[1758010741152,1.20018606,116080.0,116070.0,4.724e-05]
[1758010741776,1.17801918,116080.0,116070.0,4.724e-05]
[1758010742505,1.17779918,116080.0,116070.0,4.724e-05]
[1758010742722,1.19697136,116080.0,116070.0,0.02548724]
[1758010742933,1.18085341,116080.0,116070.0,0.02548724]
[1758010743129,1.18397341,116080.0,116070.0,0.02548724]
[1758010743354,1.20008982,116080.0,116070.0,0.00218724]
[1758010743554,1.20008982,116080.0,116070.0,4.724e-05]
[1758010744035,1.05596982,116080.0,116070.0,0.00218724]
[1758010744241,1.05596982,116080.0,116070.0,0.02842724]
[1758010744242,1.0839363,116080.0,116070.0,0.02842724]
[1758010744459,0.6284758,116080.0,116070.0,0.02842724]
[1758010744659,0.7725958,116080.0,116070.0,0.02842724]
[1758010747155,1.0839363,116080.0,116070.0,0.02842724]
[1758010747559,1.0860363,116080.0,116070.0,0.02548724]
[1758010747988,1.08604154,116080.0,116070.0,0.02842724]
[1758010749014,1.08600154,116080.0,116070.0,0.02842724]
[1758010750897,1.08600154,116080.0,116070.0,0.02548724]
[1758010751486,0.77252104,116080.0,116070.0,0.02842724]
[1758010751710,1.08386154,116080.0,116070.0,0.02842724]
[1758010752485,1.08596154,116080.0,116070.0,0.02842724]
[1758010753308,1.08596154,116080.0,116070.0,0.02548724]
[1758010755109,0.36628104,116080.0,116070.0,0.05355382]
[1758010755329,0.04412084,116080.0,116070.0,0.53720413]
[1758010755549,0.0021,116080.0,116070.0,0.53720413]
[1758010755760,0.17439496,116080.0,116070.0,0.53720413]
[1758010755969,0.0021,116080.0,116070.0,0.22586363]
[1758010756182,0.0021,116080.0,116070.0,0.28986527]
[1758010756391,0.0021,116080.0,116070.0,0.68872929]
[1758010756596,0.0011,116080.0,116070.0,0.68872929]
[1758010757006,0.0001,116080.0,116070.0,0.68872929]
[1758010757214,0.34235774,116090.0,116080.0,0.19742154]
[1758010757424,0.34235774,116090.0,116080.0,0.22366154]
[1758010757636,0.34235774,116090.0,116080.0,0.22580154]
[1758010757848,0.34235774,116090.0,116080.0,0.05350658]
[1758010758141,0.34225774,116090.0,116080.0,0.22580154]
[1758010758542,0.19817774,116090.0,116080.0,0.22580154]
[1758010759931,0.19917774,116090.0,116080.0,0.22580154]
[1758010760506,0.19917774,116090.0,116080.0,0.22590154]
[1758010761750,0.19917774,116090.0,116080.0,0.05360658]
[1758010761956,0.20017774,116090.0,116080.0,0.05360658]
[1758010762763,0.20227774,116090.0,116080.0,0.05360658]
[1758010763791,0.20539774,116090.0,116080.0,0.05066658]
[1758010764677,0.20227774,116090.0,116080.0,0.05066658]
[1758010766049,0.22509774,116090.0,116080.0,0.05066658]
[1758010766609,0.53955824,116090.0,116080.0,0.05066658]
[1758010766809,0.53955824,116090.0,116080.0,0.02522658]
[1758010769571,0.53955824,116090.0,116080.0,0.02735658]
[1758010769773,0.53955824,116090.0,116080.0,0.05216658]
[1758010770579,0.20017774,116090.0,116080.0,0.05216658]
[1758010770789,0.20017774,116090.0,116080.0,0.05529658]
[1758010771199,0.20517774,116090.0,116080.0,0.05216658]
[1758010771411,0.22947774,116090.0,116080.0,0.05216658]
[1758010771619,0.22650774,116090.0,116080.0,0.05216658]
[1758010771826,0.20017774,116090.0,116080.0,0.05529658]
[1758010778950,0.20220774,116090.0,116080.0,0.05216658]
[1758010779266,0.22650774,116090.0,116080.0,0.05216658]
[1758010780211,0.22947774,116090.0,116080.0,0.05003658]
[1758010780554,0.22947774,116090.0,116080.0,0.02522658]
[1758010780755,0.24562051,116090.0,116080.0,0.02522658]
[1758010781494,0.24562417,116090.0,116080.0,0.02522658]
[1758010781697,0.24562417,116090.0,116080.0,0.05216658]
[1758010781894,0.24265417,116090.0,116080.0,0.05216658]
[1758010783798,0.21835417,116090.0,116080.0,0.22446154]
[1758010784004,0.21835417,116090.0,116080.0,0.22759154]
[1758010784005,0.21632417,116090.0,116080.0,0.22759154]
[1758010786267,0.22238905,116090.0,116080.0,0.22759154]
[1758010786551,0.22238905,116090.0,116080.0,0.05529658]
[1758010786967,0.22441905,116090.0,116080.0,0.05529658]
[1758010787179,0.22241564,116090.0,116080.0,0.22759154]
[1758010787459,0.22241564,116090.0,116080.0,0.57782614]
[1758010787665,0.19045314,116090.0,116080.0,0.66534966]
[1758010788151,0.19045314,116090.0,116080.0,0.45963506]
[1758010788384,0.18945314,116090.0,116080.0,0.80986966]
[1758010788593,0.18945314,116090.0,116080.0,0.31511506]
[1758010788801,0.18945314,116090.0,116080.0,0.2873401]
[1758010789213,0.18845314,116090.0,116080.0,0.45963506]
[1758010791378,0.18845314,116090.0,116080.0,0.1428201]
[1758010791579,0.18845314,116090.0,116080.0,0.2873401]
[1758010791990,0.18845005,116090.0,116080.0,0.2873401]
[1758010792175,0.18845005,116090.0,116080.0,0.45963506]
[1758010792571,0.18845005,116090.0,116080.0,0.1428201]
[1758010792889,0.19048005,116090.0,116080.0,0.05216658]
[1758010793097,0.71852864,116090.0,116080.0,0.0001]
[1758010793772,0.74442626,116090.0,116080.0,0.0001]
[1758010794173,0.74642626,116090.0,116080.0,0.0001]
[1758010798997,0.74642506,116090.0,116080.0,0.0001]
[1758010800260,0.60194506,116090.0,116080.0,0.0001]
[1758010800464,0.74630506,116090.0,116080.0,0.00219]
[1758010800691,0.74630506,116090.0,116080.0,0.0001]
[1758010800865,0.60194506,116090.0,116080.0,0.0001]
[1758010801100,0.74630506,116090.0,116080.0,0.0001]
[1758010803486,0.74023836,116090.0,116080.0,0.0001]
[1758010803682,0.55041234,116090.0,116080.0,0.05307658]
[1758010803861,0.20017774,116090.0,116080.0,0.05307658]
[1758010804061,0.20623999,116090.0,116080.0,0.22537154]
[1758010804292,0.22240601,116090.0,116080.0,0.22537154]
[1758010805049,0.22240601,116090.0,116080.0,0.05307658]
[1758010805449,0.22240601,116090.0,116080.0,0.22537154]
[1758010805450,0.22240537,116090.0,116080.0,0.22537154]
[1758010805862,0.22240537,116090.0,116080.0,0.05307658]
[1758010806063,0.57263997,116090.0,116080.0,0.05307658]
[1758010806474,0.57473997,116090.0,116080.0,0.05307658]
[1758010808671,0.57473997,116090.0,116080.0,0.05003658]
[1758010809071,0.24881537,116090.0,116080.0,0.05003658]
[1758010809276,0.59904997,116090.0,116080.0,0.05003658]
[1758010812155,0.60216997,116090.0,116080.0,0.05003658]
[1758010812922,0.60216997,116090.0,116080.0,0.02522658]
[1758010813893,0.60216901,116090.0,116080.0,0.02522658]
[1758010817285,0.60216891,116090.0,116080.0,0.02522658]
[1758010817713,0.25193431,116090.0,116080.0,0.02522658]
[1758010817916,0.60216902,116090.0,116080.0,0.02522658]
[1758010819132,0.59610693,116090.0,116080.0,0.02522658]
[1758010820134,0.59610693,116090.0,116080.0,0.05003658]
[1758010820336,0.74026693,116090.0,116080.0,0.05003658]
[1758010823393,0.74018693,116090.0,116080.0,0.05003658]
[1758010823750,0.74019629,116090.0,116080.0,0.05003658]
[1758010824168,0.36043169,116090.0,116080.0,0.05307658]
[1758010825010,0.71276629,116090.0,116080.0,0.05003658]
[1758010825214,0.73707629,116090.0,116080.0,0.05003658]
[1758010825627,0.59299629,116090.0,116080.0,0.05003658]
[1758010825807,0.73707629,116090.0,116080.0,0.05003658]
[1758010826045,0.72090234,116090.0,116080.0,0.05003658]
[1758010826661,0.72402234,116090.0,116080.0,0.05003658]
[1758010829685,0.37378774,116090.0,116080.0,0.05003658]
[1758010829888,0.72402234,116090.0,116080.0,0.05003658]
[1758010833613,0.57682234,116090.0,116080.0,0.05003658]
[1758010833795,0.72082234,116090.0,116080.0,0.05003658]
[1758010834755,0.37058774,116090.0,116080.0,0.05003658]
[1758010835229,0.22658774,116090.0,116080.0,0.05003658]
[1758010835461,0.37058774,116090.0,116080.0,0.05003658]
[1758010837349,0.37360774,116090.0,116080.0,0.05003658]
[1758010837780,0.37360774,116090.0,116080.0,0.02522658]
[1758010838147,0.72384234,116090.0,116080.0,0.02522658]
[1758010838347,0.37360774,116090.0,116080.0,0.02522658]
[1758010838591,0.72384234,116090.0,116080.0,0.02522658]
[1758010838920,0.72384234,116090.0,116080.0,0.04915658]
[1758010839129,0.72384234,116090.0,116080.0,0.05125658]
[1758010841334,0.37360774,116090.0,116080.0,0.05125658]
[1758010841771,0.72384234,116090.0,116080.0,0.04915658]
[1758010841978,0.37360774,116090.0,116080.0,0.02522658]
[1758010842958,0.72384234,116090.0,116080.0,0.02522658]
[1758010843439,0.37360774,116090.0,116080.0,0.02522658]
[1758010843653,0.72384234,116090.0,116080.0,0.02522658]
[1758010844462,0.57984234,116090.0,116080.0,0.02522658]
[1758010844674,0.72384234,116090.0,116080.0,0.02522658]
[1758010845023,0.72384234,116090.0,116080.0,0.02732658]
[1758010845475,0.37360774,116090.0,116080.0,0.02732658]
[1758010845677,0.72384234,116090.0,116080.0,0.02732658]
[1758010845906,0.37360774,116090.0,116080.0,0.02522658]
[1758010850029,0.22960774,116090.0,116080.0,0.02522658]
[1758010850320,0.37360774,116090.0,116080.0,0.02522658]
[1758010851227,0.22960774,116090.0,116080.0,0.02522658]
[1758010851452,0.37360774,116090.0,116080.0,0.02522658]
[1758010854508,1.02493989,116090.0,116080.0,0.0001]
[1758010854723,0.17229496,116080.0,116070.0,0.00014724]
[1758010854916,0.79495926,116080.0,116070.0,0.00014724]
[1758010855131,0.85167711,116080.0,116070.0,0.00014724]
[1758010855444,0.87757837,116080.0,116070.0,0.00014724]
[1758010856966,0.87757837,116080.0,116070.0,4.724e-05]
[1758010857843,0.87967837,116080.0,116070.0,4.724e-05]
[1758010858039,1.19101052,116080.0,116070.0,4.724e-05]
[1758010858179,1.19001052,116080.0,116070.0,4.724e-05]
[1758010858650,1.19101052,116080.0,116070.0,4.724e-05]
[1758010859694,0.87967837,116080.0,116070.0,4.724e-05]
[1758010860064,1.19101052,116080.0,116070.0,4.724e-05]
[1758010860486,1.33501052,116080.0,116070.0,4.724e-05]
[1758010860814,1.02367837,116080.0,116070.0,4.724e-05]
[1758010861320,1.33501052,116080.0,116070.0,4.724e-05]
[1758010863552,1.02367837,116080.0,116070.0,4.724e-05]
[1758010864324,0.71234622,116080.0,116070.0,4.724e-05]
[1758010864525,1.33501052,116080.0,116070.0,4.724e-05]
[1758010864831,0.79986974,116080.0,116070.0,4.724e-05]
[1758010865057,1.44784122,116080.0,116070.0,4.724e-05]
[1758010865496,1.42253404,116080.0,116070.0,4.724e-05]
[1758010866464,0.79986974,116080.0,116070.0,4.724e-05]
[1758010866678,1.42253404,116080.0,116070.0,4.724e-05]
[1758010866877,1.5752082,116080.0,116070.0,4.724e-05]